bitfinex/quotes_BTCUSD_20220306
["timestamp","ask_amount","ask_price","bid_price","bid_amount"]
[1646561464779,0.32638476,38330.0,38324.0,3.74366905]
[1646561464979,0.00019883,38328.0,38324.0,3.74366905]
[1646561465382,0.00019883,38328.0,38319.0,0.00115518]
[1646561465383,0.15,38325.0,38319.0,0.00115518]
[1646561465586,0.15,38320.0,38319.0,0.00115518]
[1646561465782,0.24106576,38320.0,38319.0,0.00115518]
[1646561465980,0.00269672,38318.0,38305.0,4.27103428]
[1646561466279,0.00269672,38318.0,38305.0,0.21498667]
[1646561466280,0.15,38313.0,38305.0,0.21498667]
[1646561466579,0.14971912,38313.0,38305.0,0.42087119]
[1646561466780,0.00269672,38318.0,38305.0,0.21498667]
[1646561466980,0.14971912,38312.0,38306.0,0.32660454]
[1646561467224,0.14971912,38312.0,38307.0,0.0651754]
[1646561467423,0.00269672,38318.0,38306.0,0.32660454]
[1646561467424,0.14971912,38311.0,38306.0,0.32660454]
[1646561467623,0.14971912,38311.0,38305.0,0.21498667]
[1646561468423,0.14971912,38311.0,38309.0,0.06113288]
[1646561468824,0.03657897,38310.0,38309.0,0.06113288]
[1646561469227,0.007,38315.0,38310.0,1.15]
[1646561469426,0.00269672,38318.0,38314.0,3.74366905]
[1646561469626,0.001,38316.0,38315.0,0.38047286]
[1646561469825,0.17773001,38310.0,38308.0,0.7842]
[1646561470026,0.001,38316.0,38310.0,1.15]
[1646561470226,0.001,38316.0,38315.0,3.74366905]
[1646561470425,0.001,38316.0,38315.0,4.19160655]
[1646561470628,0.14971912,38328.0,38315.0,4.19160655]
[1646561470629,0.14971912,38328.0,38317.0,0.02576]
[1646561470896,0.4554,38341.0,38329.0,0.05383603]
[1646561471085,0.14971912,38340.0,38335.0,0.06951673]
[1646561471285,0.16275912,38340.0,38327.0,0.09669]
[1646561471482,0.14971912,38340.0,38329.0,3.95471203]
[1646561471683,0.005,38334.0,38330.0,3.74366905]
[1646561471883,0.005,38334.0,38330.0,2.88745794]
[1646561472084,0.005,38334.0,38331.0,0.32795876]
[1646561472286,0.005,38334.0,38331.0,0.50479049]
[1646561473088,0.14971912,38340.0,38331.0,0.50479049]
[1646561473089,0.14971912,38340.0,38337.0,0.18480835]
[1646561473286,0.14971912,38340.0,38333.0,2.88745794]
[1646561473492,0.00019896,38334.0,38333.0,2.88745794]
[1646561474287,0.14971912,38340.0,38333.0,2.88745794]
[1646561474486,0.14971912,38340.0,38335.0,2.88745794]
[1646561475430,0.14971912,38340.0,38335.0,3.10098538]
[1646561475829,0.00019896,38339.0,38335.0,2.88745794]
[1646561476228,0.20538821,38339.0,38335.0,2.88745794]
[1646561476429,0.20538821,38339.0,38336.0,0.32795876]
[1646561476828,0.20518925,38339.0,38337.0,0.21050392]
[1646561477030,0.20538821,38339.0,38337.0,0.21050392]
[1646561477830,0.20518925,38339.0,38335.0,2.88745794]
[1646561478030,0.20518925,38340.0,38335.0,2.88745794]
[1646561478232,0.20538821,38340.0,38335.0,2.88745794]
[1646561478894,0.20538821,38340.0,38336.0,0.21156881]
[1646561479095,0.20518925,38341.0,38337.0,2.88745794]
[1646561479497,0.20518925,38341.0,38322.0,0.01303]
[1646561479498,0.00019896,38339.0,38322.0,0.01303]
[1646561479696,0.00019896,38339.0,38321.0,2.88745794]
[1646561479697,0.14971912,38333.0,38321.0,2.88745794]
[1646561479894,0.14971912,38333.0,38319.0,0.00116689]
[1646561479895,0.23094925,38333.0,38319.0,0.00116689]
[1646561480095,0.14971912,38328.0,38320.0,2.88745794]
[1646561480295,0.35490837,38330.0,38321.0,2.88745794]
[1646561480494,0.20518925,38330.0,38321.0,2.88745794]
[1646561480696,0.00019897,38328.0,38323.0,0.15657791]
[1646561480894,0.00019897,38328.0,38321.0,2.88745794]
[1646561481301,0.02526116,38327.0,38321.0,2.88745794]
[1646561481496,0.02526116,38327.0,38321.0,3.08514299]
[1646561481696,0.14971912,38325.0,38321.0,3.08514299]
[1646561481896,0.00019897,38326.0,38321.0,3.08514299]
[1646561481897,0.00019897,38326.0,38321.0,2.88745794]
[1646561482150,0.00019897,38326.0,38319.0,2.88862484]
[1646561482346,0.00019897,38326.0,38320.0,0.32667218]
[1646561482745,0.02526116,38327.0,38321.0,2.88745794]
[1646561482945,0.00019897,38325.0,38322.0,0.32667218]
[1646561483153,0.14971912,38323.0,38319.0,0.0011669]
[1646561483348,0.85525941,38318.0,38311.0,0.00070027]
[1646561483650,0.85525941,38318.0,38317.0,2.88745794]
[1646561484048,0.28674772,38327.0,38317.0,2.88745794]
[1646561484049,0.23709522,38327.0,38324.0,0.06944788]
[1646561484248,0.23709522,38327.0,38326.0,0.17736732]
[1646561484249,0.03026116,38327.0,38326.0,0.17736732]
[1646561484448,0.20683406,38332.0,38327.0,0.9]
[1646561484649,0.25648656,38334.0,38327.0,0.9]
[1646561484650,0.20683406,38334.0,38332.0,0.22803024]
[1646561484848,0.20683406,38335.0,38333.0,2.88745794]
[1646561485248,0.32081387,38340.0,38333.0,2.88745794]
[1646561485249,0.05713406,38336.0,38333.0,2.88745794]
[1646561485448,0.25648656,38340.0,38335.0,2.88745794]
[1646561485651,0.25648656,38344.0,38339.0,2.88745794]
[1646561485882,0.25648656,38344.0,38336.0,0.21433618]
[1646561486283,0.25648656,38344.0,38342.0,2.88745794]
[1646561486486,0.01304,38347.0,38338.0,0.07454772]
[1646561486487,0.25648656,38345.0,38338.0,0.07454772]
[1646561486684,0.00018597,38342.0,38337.0,0.32839188]
[1646561486883,0.00018597,38342.0,38341.0,2.88745794]
[1646561487685,0.25648656,38346.0,38341.0,3.04667048]
[1646561487887,0.25648656,38346.0,38344.0,2.88745794]
[1646561488084,4.8949492,38332.0,38323.0,0.02576]
[1646561488285,4.8949492,38332.0,38331.0,1.10708547]
[1646561488485,4.8949492,38332.0,38331.0,1.82886623]
[1646561488687,4.8949492,38332.0,38331.0,1.92886623]
[1646561489091,4.8949492,38332.0,38331.0,2.17995986]
[1646561489287,4.8949492,38332.0,38331.0,1.63448657]
[1646561489491,0.00018081,38333.0,38331.0,1.63448657]
[1646561489492,8.1e-07,38333.0,38332.0,2.47557371]
[1646561489731,0.25648656,38353.0,38344.0,0.92557371]
[1646561490030,0.25648656,38353.0,38345.0,0.34074602]
[1646561490234,0.25648656,38353.0,38343.0,0.02576]
[1646561490235,0.25648656,38354.0,38343.0,0.06019]
[1646561490432,0.25648656,38356.0,38347.0,0.05962004]
[1646561490633,0.25648656,38359.0,38346.0,0.048]
[1646561490832,0.25648656,38358.0,38346.0,0.048]
[1646561491234,0.18270413,38355.0,38346.0,0.048]
[1646561491431,0.18270413,38355.0,38347.0,0.16540938]
[1646561491634,0.18270413,38355.0,38346.0,0.048]
[1646561491831,0.18270413,38355.0,38347.0,0.33769424]
[1646561492632,0.00019909,38353.0,38348.0,0.21102981]
[1646561492833,0.25597395,38362.0,38348.0,0.21102981]
[1646561493033,0.25597395,38362.0,38349.0,0.33769424]
[1646561493233,0.25597395,38362.0,38346.0,0.048]
[1646561493234,0.18278527,38357.0,38347.0,0.33921382]
[1646561493476,0.51321704,38368.0,38350.0,0.07153013]
[1646561493677,0.02576,38366.0,38351.0,0.33921382]
[1646561493877,0.01302,38365.0,38351.0,0.33921382]
[1646561494076,0.01302,38366.0,38356.0,0.19122565]
[1646561494280,0.51321704,38368.0,38356.0,0.142544]
[1646561494281,0.01302,38367.0,38356.0,0.142544]
[1646561494476,0.16226375,38360.0,38356.0,0.142544]
[1646561494677,0.35271098,38367.0,38348.0,0.048]
[1646561494883,0.01302,38367.0,38348.0,0.048]
[1646561495080,0.248,38369.0,38348.0,0.048]
[1646561495081,0.35271098,38368.0,38348.0,0.048]
[1646561495480,0.20708914,38363.0,38348.0,0.048]
[1646561495678,0.16326886,38360.0,38355.0,0.15061042]
[1646561496885,0.16326886,38360.0,38348.0,0.048]
[1646561496886,0.16276886,38360.0,38348.0,0.048]
[1646561497132,0.16276886,38360.0,38339.0,0.8322]
[1646561497133,0.36545098,38359.0,38339.0,0.8322]
[1646561497331,0.03878,38358.0,38345.0,0.33969098]
[1646561497531,0.03878,38358.0,38340.0,1.12389098]
[1646561497532,0.00019908,38356.0,38340.0,1.12389098]
[1646561497733,0.00019908,38356.0,38341.0,0.389127]
[1646561497931,0.00019908,38356.0,38352.0,0.22558542]
[1646561498131,0.00019908,38356.0,38352.0,0.1552416]
[1646561498531,0.18822285,38359.0,38352.0,0.1552416]
[1646561498733,0.0001976,38356.0,38352.0,0.1552416]
[1646561498930,0.0001976,38356.0,38346.0,0.389127]
[1646561499133,0.0001976,38356.0,38340.0,0.005]
[1646561499333,0.4481976,38356.0,38340.0,0.005]
[1646561499731,0.03878,38355.0,38337.0,0.33969098]
[1646561499932,0.15720627,38345.0,38340.0,0.18723828]
[1646561500232,0.15720627,38345.0,38336.0,0.4614]
[1646561500436,0.18296627,38345.0,38336.0,0.006]
[1646561500886,0.27376,38343.0,38336.0,0.006]
[1646561501082,0.27376,38343.0,38329.0,0.33969098]
[1646561501083,0.27376,38343.0,38331.0,0.18235319]
[1646561501284,0.20515746,38336.0,38331.0,0.18235319]
[1646561501483,0.20515746,38336.0,38326.0,0.00016064]
[1646561501682,0.02576,38341.0,38326.0,0.33916688]
[1646561501982,0.02576,38341.0,38326.0,0.33900624]
[1646561502187,0.02576,38340.0,38326.0,0.33900624]
[1646561502383,0.09102405,38340.0,38326.0,0.33900624]
[1646561502783,0.16103087,38336.0,38326.0,0.33900624]
[1646561503486,0.02576,38333.0,38319.0,0.33900624]
[1646561503687,0.04527511,38334.0,38320.0,0.002]
[1646561504085,0.04527511,38334.0,38322.0,0.05403452]
[1646561504285,0.17406087,38336.0,38323.0,0.33900624]
[1646561504486,0.02576,38335.0,38324.0,0.16334055]
[1646561504746,0.01303,38336.0,38325.0,0.33900624]
[1646561504942,0.01303,38336.0,38326.0,0.7792]
[1646561505142,0.2,38341.0,38324.0,0.18910055]
[1646561505143,0.01303,38340.0,38324.0,0.16334055]
[1646561505343,0.03879,38344.0,38325.0,1.05690448]
[1646561505541,0.03879,38344.0,38330.0,0.20092059]
[1646561505542,0.20291177,38340.0,38330.0,0.20092059]
[1646561506142,0.01303,38339.0,38330.0,0.20092059]
[1646561506541,0.01303,38339.0,38332.0,0.20240226]
[1646561508242,0.26103,38340.0,38332.0,0.20240226]
[1646561508483,0.248,38340.0,38332.0,0.20240226]
[1646561508885,0.001,38342.0,38338.0,0.20025084]
[1646561509084,0.21845063,38337.0,38329.0,0.05604359]
[1646561509285,0.21845063,38337.0,38335.0,0.06691719]
[1646561509484,0.21845063,38337.0,38328.0,0.7842]
[1646561509683,0.21845063,38337.0,38329.0,0.389127]
[1646561509887,0.21845063,38337.0,38332.0,0.389127]
[1646561510088,0.21845063,38337.0,38334.0,0.389127]
[1646561510282,0.21845063,38337.0,38336.0,1.173327]
[1646561510783,0.21845063,38337.0,38336.0,0.44295946]
[1646561510985,0.07109885,38337.0,38336.0,0.44295946]
[1646561511385,0.07109885,38337.0,38336.0,0.389127]
[1646561511586,0.07109885,38337.0,38332.0,0.36948083]
[1646561511786,0.07109885,38337.0,38333.0,0.102]
[1646561511787,0.71328837,38335.0,38333.0,0.102]
[1646561512446,0.71328837,38335.0,38334.0,0.45878248]
[1646561512843,0.70828837,38335.0,38334.0,0.389127]
[1646561513443,0.70828837,38335.0,38334.0,1.173327]
[1646561513848,0.70828837,38335.0,38334.0,0.389127]
[1646561514046,0.70828837,38335.0,38334.0,0.4529256]
[1646561514445,0.70828837,38335.0,38334.0,1.2371256]
[1646561514645,0.70328837,38335.0,38334.0,0.4529256]
[1646561515048,0.70328837,38335.0,38334.0,1.2371256]
[1646561515250,0.23284914,38350.0,38334.0,1.2371256]
[1646561515251,0.34055154,38351.0,38348.0,0.07456086]
[1646561515449,0.36230904,38358.0,38337.0,1.17576]
[1646561515450,0.22010914,38355.0,38338.0,0.29856118]
[1646561515646,0.00019776,38355.0,38339.0,0.462887]
[1646561515893,0.00019776,38355.0,38343.0,0.7842]
[1646561516091,0.00019776,38355.0,38347.0,0.7842]
[1646561516289,0.00019776,38355.0,38352.0,0.16569767]
[1646561516492,0.22010914,38359.0,38352.0,0.16569767]
[1646561516692,0.00019725,38355.0,38352.0,0.16569767]
[1646561517093,0.00019725,38355.0,38352.0,0.16055677]
[1646561517494,0.00019725,38355.0,38353.0,0.389127]
[1646561517694,0.16558578,38360.0,38353.0,0.389127]
[1646561517991,0.20708914,38363.0,38359.0,0.06083987]
[1646561518194,0.20708914,38366.0,38360.0,0.33956224]
[1646561518392,0.448,38373.0,38354.0,0.12576]
[1646561518393,0.20708914,38369.0,38355.0,0.33956224]
[1646561518590,0.20708914,38368.0,38355.0,0.33956224]
[1646561518805,0.20708914,38368.0,38356.0,0.1]
[1646561519092,0.00018594,38364.0,38356.0,0.28316396]
[1646561519293,0.17480149,38359.0,38353.0,0.39193406]
[1646561519491,0.17480149,38359.0,38352.0,0.01]
[1646561519744,0.17480149,38359.0,38352.0,0.058]
[1646561519950,0.17480149,38359.0,38354.0,0.389127]
[1646561520144,0.20708914,38367.0,38353.0,1.12436106]
[1646561520348,0.00019695,38357.0,38354.0,0.05967792]
[1646561521346,0.2033834,38366.0,38355.0,0.20767731]
[1646561521549,0.00019695,38357.0,38356.0,0.34016106]
[1646561521745,0.00019695,38357.0,38355.0,0.20767731]
[1646561521944,0.00019695,38357.0,38354.0,0.33595964]
[1646561521945,0.00019695,38357.0,38354.0,0.1]
[1646561522346,0.00019695,38357.0,38353.0,0.34016106]
[1646561522546,0.2033834,38366.0,38353.0,0.34016106]
[1646561522746,0.00019695,38357.0,38353.0,0.34016106]
[1646561523049,0.00019695,38357.0,38352.0,0.058]
[1646561523246,0.00019695,38357.0,38353.0,0.7842]
[1646561523481,0.00019695,38357.0,38353.0,1.12436106]
[1646561523680,0.18974696,38359.0,38353.0,1.12436106]
[1646561523986,0.00019702,38357.0,38353.0,0.7842]
[1646561524182,0.00019702,38357.0,38354.0,0.06306013]
[1646561524780,0.00019702,38357.0,38354.0,0.7842]
[1646561524984,0.18974696,38359.0,38352.0,0.01]
[1646561525183,0.1567909,38353.0,38352.0,0.01]
[1646561525384,0.00019702,38357.0,38352.0,0.01]
[1646561525782,0.00219702,38357.0,38352.0,0.01]
[1646561526081,0.002,38357.0,38352.0,0.01]
[1646561526282,0.00019702,38356.0,38352.0,0.01]
[1646561526481,0.19932991,38355.0,38352.0,0.01]
[1646561527531,0.19952691,38355.0,38352.0,0.01]
[1646561527936,0.22528691,38355.0,38352.0,0.01]
[1646561528134,0.000197,38355.0,38352.0,0.01]
[1646561528534,0.02576,38358.0,38352.0,0.01]
[1646561528931,0.000197,38355.0,38352.0,0.01]
[1646561529832,0.20808914,38359.0,38352.0,0.01]
[1646561530034,0.20808914,38359.0,38353.0,1.21592921]
[1646561530035,0.000197,38355.0,38353.0,1.21592921]
[1646561530236,0.000197,38355.0,38354.0,0.82928806]
[1646561530434,0.000197,38355.0,38354.0,0.44016106]
[1646561530886,0.001,38359.0,38354.0,0.4999892]
[1646561531085,0.20708914,38366.0,38358.0,0.20418235]
[1646561531486,0.20708914,38366.0,38354.0,0.1]
[1646561532288,0.20708914,38366.0,38358.0,0.18414198]
[1646561532289,0.000197,38362.0,38358.0,0.18414198]
[1646561532488,0.000197,38362.0,38358.0,0.24984814]
[1646561533292,0.02576,38366.0,38358.0,0.24984814]
[1646561533489,0.02576,38367.0,38360.0,0.17007906]
[1646561533689,0.02576,38367.0,38358.0,0.24984814]
[1646561533690,0.000197,38362.0,38358.0,0.24984814]
[1646561534393,0.000197,38362.0,38359.0,0.389127]
[1646561534641,0.02576,38373.0,38370.0,0.17849537]
[1646561534841,0.000197,38362.0,38361.0,0.389127]
[1646561535042,0.000197,38362.0,38355.0,0.7446]
[1646561535043,0.000197,38362.0,38355.0,0.002]
[1646561535239,0.000197,38362.0,38354.0,0.01]
[1646561535441,0.23203361,38359.0,38354.0,0.01]
[1646561535846,0.20627361,38359.0,38354.0,0.01]
[1646561536246,0.2,38357.0,38354.0,0.01]
[1646561536447,0.58619068,38356.0,38354.0,0.01]
[1646561536642,0.36395068,38355.0,38354.0,0.01]
[1646561536844,0.36395068,38355.0,38351.0,0.003]
[1646561536845,1.17576,38354.0,38353.0,0.01]
[1646561537042,1.51395068,38354.0,38353.0,0.01]
[1646561537345,1.80995068,38354.0,38353.0,0.01]
[1646561537541,1.82297068,38354.0,38353.0,0.01]
[1646561537740,0.08678,38354.0,38353.0,0.01]
[1646561537942,0.048,38354.0,38353.0,0.01]
[1646561538143,0.20627361,38359.0,38353.0,0.01]
[1646561538395,0.000197,38355.0,38353.0,0.01]
[1646561539393,0.02576,38357.0,38353.0,0.01]
[1646561539594,0.000197,38356.0,38353.0,0.01]
[1646561539996,0.225957,38356.0,38353.0,0.01]
[1646561540194,0.02576,38355.0,38353.0,0.01]
[1646561540795,0.36732414,38355.0,38353.0,0.01]
[1646561540999,0.2,38354.0,38353.0,0.01]
[1646561541994,0.473957,38355.0,38353.0,0.01]
[1646561542238,0.000197,38355.0,38353.0,0.01]
[1646561543038,0.69305361,38359.0,38353.0,0.01]
[1646561543237,0.000197,38356.0,38353.0,0.01]
[1646561544039,0.65427361,38359.0,38353.0,0.01]
[1646561544243,0.20627361,38359.0,38355.0,0.15643521]
[1646561544445,0.000197,38356.0,38353.0,0.01]
[1646561545339,0.20275434,38359.0,38353.0,0.01]
[1646561545541,0.000197,38356.0,38353.0,0.01]
[1646561546597,0.20275434,38359.0,38353.0,0.01]
[1646561546797,0.0001858,38358.0,38353.0,0.01]
[1646561547899,0.20275434,38359.0,38353.0,0.01]
[1646561547900,0.17721659,38359.0,38353.0,0.01]
[1646561548099,0.0259458,38358.0,38353.0,0.01]
[1646561548299,0.0001858,38358.0,38353.0,0.01]
[1646561549000,0.20297659,38359.0,38353.0,0.01]
[1646561549199,0.0001996,38358.0,38353.0,0.01]
[1646561549400,0.0001996,38358.0,38341.0,0.389127]
[1646561549401,0.18279363,38351.0,38341.0,0.389127]
[1646561549632,0.18279363,38351.0,38341.0,0.93158891]
[1646561549934,0.34231202,38358.0,38352.0,0.002]
[1646561550133,0.68084914,38359.0,38352.0,0.002]
[1646561550533,0.00019955,38358.0,38352.0,0.002]
[1646561550830,0.16402123,38357.0,38352.0,0.002]
[1646561551031,0.16402123,38357.0,38341.0,0.8842]
[1646561551231,0.16402123,38357.0,38342.0,0.389127]
[1646561551436,0.16402123,38357.0,38349.0,0.20667806]
[1646561551832,0.01620602,38347.0,38346.0,0.389127]
[1646561552033,0.01620602,38347.0,38346.0,0.58952818]
[1646561552235,0.01620602,38347.0,38330.0,0.21348887]
[1646561552236,1.19057069,38344.0,38330.0,0.21348887]
[1646561552440,0.389076,38331.0,38322.0,0.21348887]
[1646561552634,0.02576,38342.0,38320.0,0.01]
[1646561552635,0.02576,38328.0,38320.0,0.01]
[1646561552833,0.02576,38331.0,38320.0,0.01]
[1646561553034,0.3568685,38338.0,38321.0,0.378082]
[1646561553236,0.14977936,38338.0,38321.0,1.162282]
[1646561553489,0.14977936,38338.0,38320.0,0.01]
[1646561553490,0.14977936,38338.0,38323.0,0.7842]
[1646561553691,0.14977936,38338.0,38324.0,0.71939584]
[1646561554196,0.14977936,38338.0,38324.0,1.50359584]
[1646561554391,0.14977936,38338.0,38324.0,1.52935584]
[1646561554589,0.14977936,38338.0,38333.0,0.16319339]
[1646561554791,0.14977936,38338.0,38334.0,0.71929684]
[1646561554992,0.14977936,38338.0,38335.0,0.7842]
[1646561555191,0.14977936,38338.0,38336.0,0.56348843]
[1646561555392,0.14977936,38338.0,38337.0,0.07017136]
[1646561555591,0.14977936,38338.0,38337.0,0.44807236]
[1646561555791,0.14977936,38338.0,38337.0,1.23227236]
[1646561556190,0.14977936,38338.0,38337.0,1.50346284]
[1646561556392,0.14977936,38338.0,38337.0,1.162101]
[1646561556992,0.14977936,38338.0,38337.0,1.503867]
[1646561557244,0.01620602,38347.0,38337.0,1.503867]
[1646561557245,0.01620602,38347.0,38346.0,0.19704235]
[1646561557442,0.01620602,38347.0,38346.0,1.01131427]
[1646561558047,0.01620602,38347.0,38346.0,0.86528532]
[1646561558642,0.01620602,38347.0,38346.0,0.66824297]
[1646561559041,0.01620602,38347.0,38346.0,0.72346748]
[1646561559466,0.01620602,38347.0,38346.0,0.66824297]
[1646561560446,0.01620602,38347.0,38346.0,0.73372485]
[1646561560645,0.01620602,38347.0,38346.0,0.85681804]
[1646561561696,0.01620602,38347.0,38346.0,1.19811396]
[1646561561894,0.01620602,38347.0,38346.0,0.85681804]
[1646561562196,0.01620602,38347.0,38346.0,0.66824297]
[1646561565241,0.01620602,38347.0,38346.0,0.66165299]
[1646561565640,0.01620602,38347.0,38346.0,0.472976]
[1646561566039,0.01620602,38347.0,38346.0,0.54197372]
[1646561566540,0.01620602,38347.0,38346.0,0.09518]
[1646561566741,0.01620602,38347.0,38346.0,0.20313015]
[1646561567343,0.01551124,38347.0,38346.0,0.58092615]
[1646561567741,0.25551125,38347.0,38346.0,0.6419785]
[1646561568396,0.00218745,38350.0,38347.0,1.15]
[1646561568607,0.00218745,38350.0,38348.0,1.50326892]
[1646561568794,0.00218745,38350.0,38349.0,1.17349592]
[1646561568994,0.00218745,38350.0,38349.0,1.55125692]
[1646561569195,0.00018745,38350.0,38349.0,1.65151774]
[1646561569395,0.20708914,38360.0,38356.0,0.38083576]
[1646561569593,0.20708914,38360.0,38356.0,0.17132836]
[1646561569996,0.20708914,38360.0,38357.0,0.377667]
[1646561570793,0.20727707,38360.0,38357.0,0.377666]
[1646561570994,0.20727707,38360.0,38356.0,0.17132836]
[1646561571593,0.20727707,38360.0,38358.0,0.53287849]
[1646561571793,0.20708914,38362.0,38355.0,0.19985932]
[1646561571994,0.00018793,38360.0,38356.0,0.377676]
[1646561572937,0.00018793,38360.0,38355.0,0.20085932]
[1646561572938,0.00018793,38360.0,38357.0,0.193615]
[1646561573140,0.31393421,38366.0,38358.0,0.43295726]
[1646561573141,0.20708914,38363.0,38358.0,0.43295726]
[1646561573345,0.003,38366.0,38358.0,0.51347726]
[1646561573346,0.00020204,38360.0,38358.0,0.51347726]
[1646561573540,0.00020204,38360.0,38358.0,0.458176]
[1646561573741,0.00020204,38360.0,38353.0,0.0019352]
[1646561573939,0.00020204,38360.0,38354.0,0.3777]
[1646561574138,0.00020204,38360.0,38355.0,0.377689]
[1646561574341,0.20708914,38364.0,38355.0,0.377689]
[1646561574540,0.00020204,38358.0,38357.0,0.1839158]
[1646561574741,0.00020204,38358.0,38357.0,0.5615838]
[1646561575341,0.20708914,38363.0,38357.0,0.5615838]
[1646561575542,0.20708914,38364.0,38357.0,0.1839158]
[1646561575741,0.00019023,38359.0,38358.0,0.44743564]
[1646561575990,0.00019023,38359.0,38358.0,0.377653]
[1646561576591,0.20708914,38364.0,38358.0,0.377653]
[1646561576792,0.20708914,38363.0,38357.0,0.1839158]
[1646561577192,0.00019023,38360.0,38357.0,0.1839158]
[1646561577393,0.00019023,38360.0,38358.0,0.377652]
[1646561577591,0.00019023,38360.0,38358.0,0.53447199]
[1646561577796,0.20708914,38364.0,38358.0,0.15681999]
[1646561577994,0.00019023,38361.0,38358.0,0.15681999]
[1646561578192,0.00019023,38361.0,38360.0,0.377633]
[1646561578593,0.00019023,38361.0,38357.0,0.1839158]
[1646561578594,0.00019023,38361.0,38358.0,0.377653]
[1646561578895,0.00019023,38361.0,38357.0,0.1839158]
[1646561579093,0.20808914,38363.0,38357.0,0.1839158]
[1646561579395,0.25921099,38366.0,38362.0,0.19527719]
[1646561579657,0.23241462,38361.0,38359.0,0.377643]
[1646561579851,0.23241462,38361.0,38359.0,0.19800982]
[1646561580251,0.23241462,38361.0,38359.0,0.36532949]
[1646561580653,0.23241462,38361.0,38359.0,0.19800982]
[1646561581254,0.23241462,38361.0,38360.0,0.72225172]
[1646561581453,0.23241462,38361.0,38360.0,0.7927825]
[1646561581856,0.23241462,38361.0,38360.0,0.95847316]
[1646561582355,0.18239447,38369.0,38368.0,0.20850051]
[1646561582554,0.18239447,38369.0,38368.0,0.1675132]
[1646561582754,0.18239447,38369.0,38357.0,0.7842]
[1646561582962,0.18239447,38369.0,38354.0,0.002]
[1646561582963,0.75690322,38368.0,38354.0,0.002]
[1646561583255,0.36230904,38366.0,38354.0,0.002]
[1646561583495,0.065231,38363.0,38354.0,0.18566943]
[1646561583790,0.34461872,38365.0,38357.0,0.19720551]
[1646561583990,0.389076,38364.0,38349.0,0.001]
[1646561584192,0.389076,38362.0,38349.0,0.001]
[1646561584489,0.0522,38364.0,38349.0,0.001]
[1646561584490,0.414836,38360.0,38349.0,0.001]
[1646561584690,0.480072,38360.0,38349.0,0.001]
[1646561584890,0.06523484,38359.0,38349.0,0.001]
[1646561585090,0.389076,38358.0,38353.0,0.18510869]
[1646561585904,0.389076,38358.0,38346.0,1.0]
[1646561586993,0.389076,38358.0,38350.0,0.21946779]
[1646561587244,0.389076,38358.0,38351.0,0.45]
[1646561587644,0.389076,38358.0,38350.0,0.21946779]
[1646561588449,0.25927592,38356.0,38346.0,1.0]
[1646561588748,0.25927592,38356.0,38350.0,0.00104346]
[1646561588749,0.34521828,38355.0,38350.0,0.00104346]
[1646561588950,0.389076,38354.0,38346.0,1.0]
[1646561589150,0.25927592,38356.0,38346.0,1.0]
[1646561589151,0.73429428,38353.0,38346.0,1.0]
[1646561589350,0.389076,38353.0,38346.0,1.0]
[1646561589549,0.25927592,38354.0,38346.0,1.0]
[1646561589550,0.389076,38351.0,38346.0,1.0]
[1646561589949,0.389076,38351.0,38346.0,0.7509]
[1646561590749,0.59653692,38351.0,38346.0,0.7509]
[1646561591198,0.59653692,38351.0,38350.0,0.19006753]
[1646561591397,0.31108164,38356.0,38347.0,0.16834189]
[1646561591398,0.14452253,38349.0,38347.0,0.16834189]
[1646561591600,0.389076,38348.0,38346.0,0.7509]
[1646561591800,0.389076,38348.0,38346.0,0.0376677]
[1646561591998,0.14452253,38349.0,38346.0,0.0376677]
[1646561592197,0.389076,38348.0,38346.0,0.0376677]
[1646561592397,0.14452253,38349.0,38346.0,0.0376677]
[1646561593302,0.389076,38347.0,38346.0,0.0376677]
[1646561598403,0.59657889,38347.0,38346.0,0.0376677]
[1646561598607,0.389076,38347.0,38346.0,0.0376677]
[1646561599106,0.57178782,38347.0,38346.0,0.0376677]
[1646561599303,0.57178782,38347.0,38340.0,0.60841584]
[1646561599304,0.02576,38346.0,38340.0,0.60841584]
[1646561599507,0.59662531,38341.0,38340.0,0.60841584]
[1646561599705,0.389076,38341.0,38340.0,0.60841584]
[1646561599906,0.59656274,38341.0,38340.0,0.60841584]
[1646561600105,0.62232274,38341.0,38340.0,0.60841584]
[1646561600604,0.59656274,38341.0,38340.0,0.60841584]
[1646561601007,0.389076,38341.0,38340.0,0.60841584]
[1646561602440,0.24767147,38339.0,38332.0,0.16221616]
[1646561602637,0.389076,38338.0,38332.0,0.16221616]
[1646561603238,0.24767147,38339.0,38333.0,0.20985502]
[1646561603442,0.24767147,38339.0,38338.0,0.21935789]
[1646561603639,0.63674747,38339.0,38338.0,0.21935789]
[1646561604642,0.63674747,38339.0,38331.0,0.00019678]
[1646561604843,0.24767147,38339.0,38331.0,0.00019678]
[1646561605448,0.24767147,38339.0,38330.0,0.7842]
[1646561605649,0.24767147,38339.0,38338.0,0.84839889]
[1646561605898,0.24767147,38339.0,38338.0,1.01483377]
[1646561606301,0.24767147,38339.0,38338.0,0.16643488]
[1646561606495,0.24767147,38339.0,38338.0,0.36660247]
[1646561606699,0.24767147,38339.0,38338.0,1.15080247]
[1646561607198,0.24767147,38339.0,38338.0,0.36660247]
[1646561608394,0.24767147,38339.0,38338.0,1.15080247]
[1646561608795,0.24767147,38339.0,38338.0,0.36660247]
[1646561609396,0.24767147,38339.0,38336.0,0.85895268]
[1646561610343,0.24767147,38339.0,38336.0,0.20901377]
[1646561610543,0.24767147,38339.0,38336.0,0.99321377]
[1646561612543,0.24767147,38339.0,38336.0,1.0578558]
[1646561612947,0.24767147,38339.0,38336.0,0.99321377]
[1646561615198,0.35200927,38349.0,38348.0,0.18050205]
[1646561615398,0.35200927,38349.0,38348.0,0.96470205]
[1646561615897,0.14452253,38349.0,38348.0,0.42052319]
[1646561616598,0.14452253,38349.0,38348.0,0.47362888]
[1646561616997,0.14452253,38349.0,38348.0,0.42052319]
[1646561617238,0.14452253,38349.0,38348.0,1.20472319]
[1646561617640,0.14452253,38349.0,38348.0,0.42052319]
[1646561618241,0.14452253,38349.0,38348.0,1.20472319]
[1646561618850,0.14452253,38349.0,38348.0,1.27395485]
[1646561620444,0.14452253,38349.0,38348.0,1.06661646]
[1646561620647,0.14452253,38349.0,38344.0,0.002]
[1646561620648,0.50062745,38349.0,38344.0,0.002]
[1646561620928,0.20748674,38346.0,38344.0,0.002]
[1646561621627,0.20748674,38346.0,38343.0,0.7842]
[1646561621825,0.20748674,38345.0,38341.0,0.27664437]